{"text_format":"1","workbook":"xlsx","n_sheets":3,"sheets":["Offerte","Teksten","Lijsten"],"not_rendered":{"charts":0,"images":0,"macros":1,"external_links":0,"defined_names":7,"comments":0,"pivot_tables":0},"unopened":[],"bounds":{"document_bytes":16777216,"sheet_cells":100000,"rows_first":2000,"rows_last":500,"rows_between":2000,"halvings":0,"cell_chars":16384,"cell_head_chars":4096},"cells_cut":0,"cells_raw":0,"read":"whole","date_system":"1900"}

{"sheet":"Offerte","index":0,"n_rows":62,"n_cols":9,"rows_kept":62,"cut":false,"hidden":false,"merged":[[10,3,10,5],[1,0,1,1],[2,0,2,1],[3,0,3,1],[8,3,8,5],[9,3,9,5],[13,0,14,0],[13,1,14,3],[13,4,14,4],[13,5,14,5],[16,1,16,2],[16,4,16,5],[17,1,17,2],[17,4,17,5],[18,1,18,2],[18,4,18,5],[11,4,11,5]]}
[null,null,"Kleur","Hoogte","Handgreep","Horizontale","Staanders","Montage","wit"]
[]
[]
[]
[]
[]
[]
[]
[]
[]
[]
[null,null,null,"tav.:"]
[]
["Offerte nr",null,null,null,"datum :"]
[]
[]
["Project",null,null,"tel :"]
["Adres",null,null,"GSM :"]
[null,null,null,"Email :"]
[]
["Artnr","Omschrijving","Eenh","Aantal","prijs/eenh","totaal"]
[null,null,null,null,null,{"$f":"E22*D22","v":0}]
[null,"   - Kleur : geanodiseerd natuur 25Mc of gemoffeld in RAL kleur",null,null,null,{"$f":"E23*D23","v":0}]
[null,"   - Hoogte: 600 mm",null,null,null,0]
[null,"   - Handgreep : dia 50x2",null,null,null,0]
[null,"   - Horizontale :  3x dia 25x2",null,null,null,0]
[null,"   - Staanders: uit profiel 43x20",null,null,null,0]
[null,"   - Montage: op balkon - recht - niet schuinlopend",null,null,null,0]
[null,"wit",null,null,null,0]
[null,null,null,null,null,0]
[null,null,null,null,null,0]
[null,null,null,null,null,0]
[null,null,null,null,null,0]
[null,null,null,null,null,0]
[null,null,null,null,null,0]
[null,null,null,null,null,0]
[null,null,null,null,null,0]
[null,null,null,null,null,0]
[null,null,null,null,null,0]
[null,null,null,null,null,0]
[null,null,null,null,null,0]
[null,null,null,null,null,0]
[null,null,null,null,null,0]
[null,null,null,null,null,0]
[null,null,null,null,null,0]
[null,null,null,null,null,0]
[null,null,null,null,null,0]
[]
[]
[]
[]
[]
[]
[]
[]
[]
[]
[null,null,null,null,null,{"$f":"E58*D58","v":0}]
[]
[]
[]
[null,null,null,null,"Tot. Excl btw",{"$f":"SUM(F22:F59)","v":0}]

{"sheet":"Teksten","index":1,"n_rows":17,"n_cols":1,"rows_kept":17,"cut":false,"hidden":false,"merged":[]}
["standaard - H 1200mm"]
[]
["   - Kleur : geanodiseerd natuur 25Mc"]
["   - Hoogte: 1200 mm"]
["   - Handgreep : dia 50x2"]
["   - Horizontale :  9x dia 25x2"]
["   - Staanders: uit profiel 43x20"]
["   - Montage: op balkon"]
[]
[" standaard - H 600mm"]
[]
["   - Kleur : geanodiseerd natuur 25Mc of gemoffeld in RAL kleur"]
["   - Hoogte: 600 mm"]
["   - Handgreep : dia 50x2"]
["   - Horizontale :  3x dia 25x2"]
["   - Staanders: uit profiel 43x20"]
["   - Montage: op muurafdekkap in onderliggende betonbalk (muurafdekkap niet inbegrepen)"]

{"sheet":"Lijsten","index":2,"n_rows":8,"n_cols":21,"rows_kept":8,"cut":false,"hidden":false,"merged":[]}
["   - Montage: op balkon",null,null,null,null,null,null,null,null,null,"   - Kleur : gemoffeld naar keuze - maritiem",null,null,null,null,null,null,null,null,null,"   - Hoogte: 1100 mm"]
["   - Montage: op arduin dorpel - voor ramen",null,null,null,null,null,null,null,null,null,"   - Kleur : geanodiseerd natuur 25Mc",null,null,null,null,null,null,null,null,null,"   - Hoogte: 1200 mm"]
["   - Montage: op balkon - recht - niet schuinlopend",null,null,null,null,null,null,null,null,null,"   - Kleur : gemoffeld in RAL kleur naar keuze"]
["   - Montage: op muurafdekkap in onderliggende betonbalk (muurafdekkap niet inbegrepen)",null,null,null,null,null,null,null,null,null,"   - Kleur : geanodiseerd natuur 25Mc of gemoffeld in RAL kleur"]
["   - Montage: op balkon"]
["   - Montage: op arduin dorpel - voor ramen"]
["   - Montage: op balkon - recht - niet schuinlopend"]
["   - Montage: op muurafdekkap in onderliggende betonbalk (muurafdekkap niet inbegrepen)"]